bitfinex/quotes_SOLUSD_20241210
["timestamp","ask_amount","ask_price","bid_price","bid_amount"]
[1733828752288,20.0,217.26,217.14,0.69052908]
[1733828752602,20.0,217.26,217.16,8.94669068]
[1733828752801,1.61,217.24,217.11,7.20588167]
[1733828753000,1.61,217.24,217.12,8.94669068]
[1733828753408,1.61,217.24,217.13,8.94669068]
[1733828754297,1.61,217.24,217.13,320.94669068]
[1733828755396,1.61,217.24,217.13,312.0]
[1733828755599,20.0,217.2,217.08,8.94669068]
[1733828755788,20.0,217.2,217.07,8.94669068]
[1733828756586,1.73549,217.19,217.06,8.94669068]
[1733828756783,1.73549,217.19,217.03,0.69084266]
[1733828756784,1.73549,217.19,217.05,8.94669068]
[1733828756998,1.61,217.19,217.09,8.94669068]
[1733828757206,1.61,217.19,217.1,8.94669068]
[1733828758003,1.61,217.19,217.04,20.81628951]
[1733828758213,1.61,217.19,217.04,0.69079951]
[1733828758412,1.61,217.19,217.06,8.94669068]
[1733828758741,1.61,217.19,217.07,8.94669068]
[1733828760714,1.61,217.19,217.1,8.94669068]
[1733828761036,1.61,217.19,217.08,8.94669068]
[1733828761814,1.61,217.19,217.15,8.94669068]
[1733828762692,6.0079,217.23,217.17,8.94669068]
[1733828762896,6.0079,217.23,217.18,8.94669068]
[1733828763309,1.61,217.24,217.2,8.94669068]
[1733828763615,1.61,217.29,217.23,8.94669068]
[1733828763914,1.61,217.29,217.23,312.0]
[1733828764104,1.61,217.29,217.19,8.94669068]
[1733828764301,1.61,217.29,217.15,0.81594873]
[1733828764508,1.61,217.29,217.18,8.94669068]
[1733828764717,1.61,217.29,217.19,8.94669068]
[1733828764926,1.61,217.29,217.23,8.94669068]
[1733828765132,6.0079,217.34,217.15,0.12549]
[1733828765133,6.0079,217.34,217.25,8.94669068]
[1733828765337,6.0079,217.34,217.24,8.94669068]
[1733828765338,7.6179,217.34,217.24,8.94669068]
[1733828766013,7.6179,217.34,217.26,8.94669068]
[1733828767321,7.6179,217.34,217.25,8.94669068]
[1733828767936,7.6179,217.34,217.26,8.94669068]
[1733828769237,7.6179,217.34,217.26,13.98688664]
[1733828769750,7.6179,217.34,217.27,13.98688664]
[1733828769952,7.6179,217.34,217.28,13.98688664]
[1733828770439,7.6179,217.34,217.25,13.98688664]
[1733828771030,7.6179,217.34,217.2,1.5169]
[1733828771031,20.0,217.31,217.22,13.98688664]
[1733828771640,20.0,217.31,217.25,13.98688664]
[1733828771842,16.05719213,217.43,217.3,13.98688664]
[1733828771843,1.6172,217.43,217.3,13.98688664]
[1733828772148,0.12549,217.42,217.29,13.98688664]
[1733828772515,1.6172,217.43,217.3,13.98688664]
[1733828773051,0.12549,217.42,217.3,13.98688664]
[1733828773418,0.12549,217.42,217.28,13.98688664]
[1733828773617,0.12549,217.4,217.28,13.98688664]
[1733828775957,0.12549,217.4,217.26,13.98688664]
[1733828776112,20.0,217.36,217.2,0.69026324]
[1733828776315,20.0,217.36,217.21,13.98688664]
[1733828777011,20.0,217.35,217.21,13.98688664]
[1733828777216,20.0,217.36,217.21,13.98688664]
[1733828777431,20.0,217.36,217.22,13.98688664]
[1733828777915,0.25098,217.35,217.22,13.98688664]
[1733828778116,0.12549,217.33,217.2,13.98688664]
[1733828778333,6.3526,217.32,217.2,13.98688664]
[1733828778525,20.0,217.29,217.2,13.98688664]
[1733828779233,20.0,217.29,217.19,13.98688664]
[1733828779534,20.0,217.29,217.16,312.0]
[1733828779535,20.0,217.29,217.17,13.98688664]
[1733828779711,20.0,217.29,217.18,13.98688664]
[1733828779911,20.0,217.29,217.15,2.20744031]
[1733828779912,20.0,217.29,217.19,13.98688664]
[1733828780112,6.3526,217.32,217.25,13.98688664]
[1733828780345,6.3526,217.32,217.27,13.98688664]
[1733828780541,6.3526,217.32,217.28,13.98688664]
[1733828780721,1.6172,217.34,217.28,13.98688664]
[1733828781628,21.6172,217.34,217.28,13.98688664]
[1733828782531,21.6172,217.34,217.27,13.98688664]
[1733828784227,1.6172,217.34,217.28,13.98688664]
[1733828784427,1.6172,217.4,217.32,13.98688664]
[1733828785448,1.6172,217.4,217.31,13.98688664]
[1733828785829,20.0,217.39,217.31,14.67692986]
[1733828786033,20.0,217.39,217.32,13.98688664]
[1733828786354,1.6172,217.4,217.34,13.98688664]
[1733828786648,1.6172,217.4,217.33,14.67688013]
[1733828787026,1.6172,217.4,217.33,0.68999349]
[1733828787421,1.6172,217.4,217.3,13.98688664]
[1733828788156,1.6172,217.4,217.31,13.98688664]
[1733828788449,1.6172,217.4,217.34,13.98688664]
[1733828789222,1.6172,217.4,217.33,13.98688664]
[1733828790165,1.6172,217.4,217.34,0.68995517]
[1733828794851,1.6172,217.4,217.33,13.98688664]
[1733828795049,1.6172,217.4,217.32,13.98688664]
[1733828795252,1.6172,217.4,217.31,13.98688664]
[1733828795451,20.0,217.39,217.29,14.67684474]
[1733828797176,20.0,217.39,217.28,13.98688664]
[1733828797468,20.0,217.39,217.29,13.98688664]
[1733828798146,20.0,217.39,217.3,13.98688664]
[1733828799434,20.0,217.39,217.23,17.7498]
[1733828799435,20.0,217.39,217.2,0.12549]
[1733828799757,20.0,217.35,217.25,13.98688664]
[1733828800131,20.0,217.35,217.27,13.98688664]
[1733828800356,20.0,217.35,217.28,13.98688664]
[1733828800737,20.0,217.35,217.27,13.98688664]
[1733828802237,20.0,217.35,217.26,13.98688664]
[1733828802439,20.0,217.35,217.25,13.98688664]
[1733828802637,1.62,217.34,217.24,13.98688664]
[1733828804858,1.62,217.34,217.25,13.98688664]
[1733828805236,1.62,217.34,217.27,13.98688664]
[1733828806137,6.4442,217.38,217.31,13.98688664]
[1733828806358,6.4442,217.38,217.32,13.98688664]
[1733828806557,6.4442,217.38,217.29,13.98688664]
[1733828806859,6.4442,217.38,217.3,13.98688664]
[1733828807463,20.0,217.35,217.3,13.98688664]
[1733828807639,6.4442,217.38,217.31,13.98688664]
[1733828809144,6.4442,217.38,217.32,13.98688664]
[1733828811866,6.4442,217.38,217.31,13.98688664]
[1733828815160,6.4442,217.38,217.31,8.947704]
[1733828818951,6.4442,217.38,217.3,0.69004117]
[1733828819163,6.4442,217.38,217.27,0.69009778]
[1733828819368,6.4442,217.38,217.29,8.947704]
[1733828819756,20.0,217.35,217.28,8.947704]
[1733828819945,2.17633976,217.38,217.27,8.947704]
[1733828820361,2.17633976,217.38,217.26,8.947704]
[1733828821181,1.5267,217.36,217.21,0.69022192]
[1733828821464,1.5267,217.36,217.22,8.947704]
[1733828821673,1.5267,217.36,217.23,8.947704]
[1733828821855,1.5267,217.36,217.25,8.947704]
[1733828822052,1.5267,217.36,217.26,9.63797808]
[1733828822265,20.0,217.35,217.28,8.947704]
[1733828822881,1.5267,217.36,217.28,8.947704]
[1733828823579,1.5267,217.36,217.27,8.947704]
[1733828824465,1.5267,217.36,217.23,8.947704]
[1733828824777,1.5267,217.36,217.22,8.947704]
[1733828825361,1.5267,217.36,217.18,0.12549]
[1733828825566,0.12549,217.33,217.2,8.947704]
[1733828825770,20.0,217.29,217.19,8.947704]
[1733828826278,20.0,217.29,217.18,8.947704]
[1733828826578,20.0,217.29,217.19,8.947704]
[1733828827273,20.0,217.29,217.17,8.947704]
[1733828827470,20.0,217.29,217.16,8.947704]
[1733828827864,1.5267,217.27,217.15,8.947704]
[1733828828558,6.3366,217.26,217.14,8.947704]
[1733828828758,20.0,217.23,217.14,8.947704]
[1733828829154,20.0,217.23,217.11,312.0]
[1733828829473,20.0,217.23,217.12,14.00245923]
[1733828830780,20.0,217.23,217.14,14.00245923]
[1733828833295,20.0,217.23,217.13,14.00245923]
[1733828837104,6.3366,217.26,217.18,14.00245923]
[1733828837463,6.3366,217.26,217.14,0.69065746]
[1733828837464,6.3366,217.26,217.17,14.00245923]
[1733828838163,6.3366,217.26,217.19,14.00245923]
[1733828838598,6.3366,217.26,217.18,14.00245923]
[1733828839099,6.3366,217.26,217.14,14.00245923]
[1733828839986,20.0,217.23,217.14,14.00245923]
[1733828840210,20.0,217.23,217.12,14.00245923]
[1733828840377,20.0,217.23,217.11,14.00245923]
[1733828840698,20.0,217.18,217.02,0.6907437]
[1733828840891,0.25098,217.16,217.02,14.00245923]
[1733828841088,0.25098,217.16,217.0,7.20588167]
[1733828841089,0.25098,217.11,216.99,14.00245923]
[1733828841404,1.6356,217.1,216.97,14.00245923]
[1733828841700,1.6356,217.1,216.96,14.00245923]
[1733828841899,1.6356,217.1,216.97,14.00245923]
[1733828843220,1.6356,217.1,217.01,14.00245923]
[1733828843394,1.6356,217.1,217.02,14.00245923]
[1733828843707,6.0349,217.15,217.07,14.00245923]
[1733828843941,6.0349,217.15,217.08,14.00245923]
[1733828844076,6.0349,217.15,217.09,14.00245923]
[1733828844279,1.6356,217.16,217.1,14.00245923]
[1733828847285,1.6356,217.16,217.06,14.00245923]
[1733828848818,1.6356,217.16,217.05,14.00245923]
[1733828849005,1.6356,217.16,217.02,14.00245923]
[1733828849510,1.6356,217.16,217.03,14.00245923]
[1733828849705,1.6356,217.16,217.06,14.00245923]
[1733828850021,1.6356,217.16,217.08,14.00245923]
[1733828850224,1.6356,217.16,217.09,14.00245923]
[1733828851303,1.6356,217.16,217.08,14.00245923]
[1733828851503,1.6356,217.16,217.1,14.00245923]
[1733828851699,6.0349,217.2,217.11,14.6932014]
[1733828851905,6.0349,217.2,217.13,14.00245923]
[1733828852115,6.0349,217.2,217.15,14.00245923]
[1733828852317,6.0349,217.2,217.14,14.00245923]
[1733828852625,6.0349,217.2,217.13,14.00245923]
[1733828853412,6.0349,217.2,217.14,14.00245923]
[1733828853620,6.0349,217.2,217.15,14.00245923]
[1733828854128,6.0349,217.2,217.14,14.00245923]
[1733828855510,6.0349,217.2,217.15,14.00245923]
[1733828855710,6.0349,217.2,217.14,14.00245923]
[1733828856525,6.0349,217.2,217.13,14.00245923]
[1733828857415,6.0349,217.2,217.12,14.00245923]
[1733828857834,6.0349,217.2,217.14,14.00245923]
[1733828859032,6.0349,217.2,217.15,14.00245923]
[1733828860021,1.5335,217.22,217.16,14.00245923]
[1733828860218,1.5335,217.22,217.17,14.00245923]
[1733828860410,1.5335,217.22,217.18,14.00245923]
[1733828860820,1.5335,217.22,217.17,14.00245923]
[1733828863010,6.1174,217.26,217.2,14.00245923]
[1733828863209,1.6016,217.28,217.23,14.00245923]
[1733828864016,1.6016,217.28,217.24,14.00245923]
[1733828864220,1.6016,217.28,217.25,14.00245923]
[1733828865229,1.6016,217.28,217.24,14.00245923]
[1733828867937,1.6016,217.33,217.27,14.00245923]
[1733828868239,1.6016,217.33,217.3,14.00245923]
[1733828868438,1.6016,217.33,217.31,14.00245923]
[1733828868737,6.1481,217.36,217.29,14.00245923]
[1733828869631,6.1481,217.36,217.3,14.00245923]
[1733828870323,6.1481,217.36,217.26,14.00245923]
[1733828870521,20.0,217.33,217.21,0.69027913]
[1733828870723,20.0,217.33,217.24,14.00245923]
[1733828870924,20.0,217.33,217.25,14.00245923]
[1733828871942,20.0,217.33,217.23,14.00245923]
[1733828874815,20.0,217.33,217.22,14.00245923]
[1733828875024,1.6016,217.32,217.18,14.00245923]
[1733828876031,0.25098,217.31,217.17,14.00245923]
[1733828876330,21.6016,217.32,217.18,14.69299975]
[1733828876536,21.6016,217.32,217.2,14.00245923]
[1733828876732,1.6016,217.32,217.2,14.00245923]
[1733828876942,1.6016,217.32,217.19,14.00245923]
[1733828878043,1.6016,217.32,217.18,14.00245923]
[1733828879059,1.6016,217.32,217.19,14.00245923]
[1733828883946,1.6016,217.32,217.15,0.81593341]
[1733828883947,1.6016,217.32,217.18,14.00245923]
[1733828884630,20.0,217.27,217.15,0.69047989]
[1733828884948,1.6016,217.26,217.14,14.00245923]
[1733828885254,1.6016,217.26,217.15,14.00245923]
[1733828885957,1.6016,217.26,217.14,14.00245923]
[1733828887457,1.6016,217.26,217.14,14.69305867]
[1733828887863,1.6016,217.26,217.13,14.00245923]
[1733828888730,1.6016,217.26,217.16,14.00245923]
[1733828889869,1.6016,217.26,217.2,14.00245923]
[1733828890032,1.6016,217.26,217.21,0.69039787]
[1733828890365,1.6016,217.26,217.21,14.6928571]
[1733828890548,6.1481,217.3,217.23,14.00245923]
[1733828890739,1.6016,217.31,217.25,14.00245923]
[1733828891767,1.6016,217.31,217.24,14.00245923]
[1733828892127,1.6016,217.31,217.22,0.69031189]
[1733828892333,1.6016,217.31,217.21,14.00245923]
[1733828892771,1.6016,217.31,217.23,14.00245923]
[1733828893153,1.6016,217.31,217.21,14.00245923]
[1733828895892,1.6016,217.31,217.2,14.00245923]
[1733828896254,1.6016,217.31,217.21,14.00245923]
[1733828897397,1.6016,217.31,217.22,14.00245923]
[1733828899177,1.6016,217.31,217.25,14.00245923]
[1733828899461,1.6016,217.31,217.26,14.00245923]
[1733828900181,1.6016,217.31,217.24,14.00245923]
[1733828900380,1.6016,217.31,217.25,14.00245923]
[1733828902298,6.1481,217.35,217.18,11.5106]
[1733828902299,6.1481,217.35,217.29,14.00245923]
[1733828902704,1.6098,217.36,217.3,14.00245923]
[1733828902861,1.6098,217.36,217.31,14.00245923]
[1733828903397,6.0823,217.4,217.34,14.00245923]
[1733828903958,6.0823,217.4,217.33,14.00245923]
[1733828904190,6.0823,217.4,217.32,14.69253765]
[1733828904573,6.0823,217.4,217.3,14.00245923]
[1733828904796,20.0,217.37,217.3,14.00245923]
[1733828907968,20.0,217.37,217.29,14.00245923]
[1733828910419,1.649,217.36,217.27,14.00245923]
[1733828910699,1.649,217.36,217.23,14.00245923]
[1733828911677,1.649,217.36,217.24,14.00245923]
[1733828912983,1.649,217.36,217.27,14.00245923]
[1733828913287,1.649,217.36,217.3,14.00245923]
[1733828913992,1.649,217.36,217.32,14.00245923]
[1733828914995,6.0823,217.4,217.35,14.00245923]
[1733828915206,1.649,217.42,217.35,14.00245923]
[1733828915494,1.649,217.42,217.32,0.69005013]
[1733828915495,1.649,217.42,217.36,14.00245923]
[1733828916092,1.649,217.42,217.37,14.00245923]
[1733828916698,1.649,217.42,217.36,14.00245923]
[1733828917199,1.649,217.42,217.38,14.00245923]
[1733828917372,6.4374,217.46,217.4,14.00245923]
[1733828917568,1.5146,217.47,217.42,14.00245923]
[1733828918775,1.5146,217.47,217.41,14.00245923]
[1733828921797,1.5146,217.47,217.42,0.68974089]
[1733828921978,1.5146,217.47,217.43,14.00245923]
[1733828922187,0.5668101,217.49,217.43,14.00245923]
[1733828922796,0.5668101,217.49,217.47,14.00245923]
[1733828923005,0.5668101,217.49,217.48,14.00245923]
[1733828924184,0.5668101,217.49,217.44,14.00245923]
[1733828925403,2.2276101,217.49,217.39,14.00245923]
[1733828925789,2.2276101,217.49,217.41,14.00245923]
[1733828926188,2.2276101,217.49,217.33,1.596]
[1733828926189,2.2276101,217.49,217.43,14.00245923]
[1733828926383,2.2276101,217.49,217.44,14.69210595]
[1733828927308,2.2276101,217.49,217.43,14.00245923]
[1733828927605,2.2276101,217.49,217.42,14.00245923]
[1733828928311,2.2276101,217.49,217.41,14.00245923]
[1733828928506,2.2276101,217.49,217.4,0.6897218]
[1733828928707,2.2276101,217.49,217.41,14.00245923]
[1733828929788,2.2276101,217.49,217.42,14.00245923]
[1733828930713,2.2276101,217.49,217.43,14.00245923]
[1733828932989,2.2276101,217.49,217.43,14.69214986]
[1733828933190,0.5668101,217.49,217.44,14.00245923]
[1733828933507,0.5668101,217.49,217.47,14.00245923]
[1733828934295,0.5668101,217.49,217.48,14.00245923]
[1733828937515,0.5668101,217.49,217.48,14.25343923]
[1733828937700,0.5668101,217.49,217.48,14.94277827]
[1733828937905,0.5668101,217.49,217.48,326.94277827]
[1733828938102,0.5668101,217.49,217.48,326.25343923]
[1733828938504,0.5668101,217.49,217.48,14.25343923]
[1733828938720,0.5668101,217.49,217.48,14.94277657]
[1733828941419,0.5668101,217.49,217.48,326.94277657]
[1733828941717,0.5668101,217.49,217.48,326.25343923]
[1733828943120,0.5668101,217.49,217.48,14.25343923]
[1733828943421,0.5668101,217.49,217.48,14.00245923]
[1733828945517,0.5668101,217.49,217.47,14.00245923]
[1733828946322,0.5668101,217.49,217.44,14.00245923]
[1733828946508,0.5668101,217.49,217.43,14.00245923]
[1733828946700,0.5668101,217.49,217.34,7.20588167]
[1733828946701,0.5668101,217.49,217.41,14.00245923]
[1733828946905,20.5668101,217.49,217.4,14.00245923]
[1733828947220,20.5668101,217.49,217.41,14.00245923]
[1733828947418,20.5668101,217.49,217.42,14.00245923]
[1733828947801,20.5668101,217.49,217.43,14.00245923]
[1733828948422,20.5668101,217.49,217.44,14.00245923]
[1733828948721,0.5668101,217.49,217.42,14.00245923]
[1733828948923,20.5668101,217.49,217.41,14.00245923]
[1733828949112,20.5668101,217.49,217.4,14.00245923]
[1733828950615,20.5668101,217.49,217.38,14.00245923]
[1733828950817,20.5668101,217.49,217.35,14.00245923]
[1733828951911,20.25098,217.48,217.33,14.00245923]
[1733828952220,0.25098,217.46,217.31,14.00245923]
[1733828952423,20.0,217.44,217.31,14.00245923]
[1733828952622,1.65949,217.43,217.3,14.00245923]
[1733828953224,1.534,217.43,217.31,14.00245923]
[1733828953431,1.534,217.43,217.28,0.12549]
[1733828953432,1.534,217.43,217.32,14.00245923]
[1733828953721,1.534,217.43,217.35,14.00245923]
[1733828953941,1.534,217.43,217.36,0.68993259]
[1733828954227,1.534,217.43,217.36,14.69239182]
[1733828954606,1.534,217.43,217.37,14.00245923]
[1733828955123,1.534,217.43,217.35,14.00245923]
[1733828955306,1.534,217.43,217.34,14.00245923]
[1733828957123,1.534,217.43,217.37,14.00245923]
[1733828957424,1.534,217.43,217.37,326.00245923]
[1733828957605,1.534,217.43,217.36,14.00245923]
[1733828958531,1.534,217.43,217.35,14.00245923]
[1733828959229,1.534,217.43,217.38,14.00245923]
[1733828959406,1.534,217.43,217.37,14.00245923]
[1733828959801,1.534,217.43,217.39,14.00245923]
[1733828960113,6.0749,217.47,217.41,14.00245923]
[1733828961106,1.534,217.48,217.42,14.6921933]
[1733828961423,1.534,217.48,217.45,14.00245923]
[1733828961631,0.5668101,217.49,217.45,14.00245923]
[1733828962514,0.5668101,217.49,217.48,14.00245923]
[1733828962831,0.5668101,217.49,217.45,14.00245923]
[1733828963215,0.5668101,217.49,217.46,14.00245923]
[1733828964403,0.5668101,217.49,217.45,14.00245923]
[1733828964627,0.5668101,217.49,217.42,14.00245923]
[1733828964832,0.5668101,217.49,217.41,14.00245923]
[1733828965326,0.5668101,217.49,217.42,14.00245923]
[1733828965625,0.5668101,217.49,217.45,14.00245923]
[1733828967214,0.5668101,217.49,217.43,14.00245923]
[1733828967734,0.5668101,217.49,217.43,326.00245923]
[1733828968646,0.5668101,217.49,217.43,14.00245923]
[1733828969023,0.5668101,217.49,217.45,14.00245923]
[1733828969228,0.5668101,217.49,217.46,14.00245923]
[1733828969429,0.5668101,217.49,217.47,14.00245923]
[1733828969950,0.5668101,217.49,217.48,14.00245923]
[1733828971635,0.5668101,217.49,217.48,326.00245923]
[1733828972921,0.5668101,217.49,217.48,312.0]
[1733828973128,0.5668101,217.49,217.47,14.00245923]
[1733828973726,0.5668101,217.49,217.46,14.00245923]
[1733828973927,0.5668101,217.49,217.45,14.00245923]
[1733828974228,0.5668101,217.49,217.43,14.00245923]
[1733828975146,0.5668101,217.49,217.4,14.00245923]
[1733828975361,0.5668101,217.49,217.39,0.68973185]
[1733828975362,1.6275,217.48,217.39,14.69219108]
[1733828977458,1.6275,217.48,217.41,14.00245923]
[1733828978656,1.6275,217.48,217.39,14.00245923]
[1733828979542,1.6275,217.48,217.38,14.00245923]
[1733828979940,1.6275,217.48,217.39,14.69234148]
[1733828980367,1.6275,217.48,217.42,14.00245923]
[1733828982536,1.6275,217.48,217.39,14.00245923]
[1733828982739,1.6275,217.48,217.38,14.00245923]
[1733828983449,1.6275,217.48,217.38,326.00245923]
[1733828984738,6.3031,217.47,217.36,14.00245923]
[1733828985436,6.3031,217.47,217.35,14.00245923]
[1733828985642,20.0,217.44,217.34,14.00245923]
[1733828985870,20.0,217.44,217.33,14.00245923]
[1733828986165,20.0,217.44,217.32,14.00245923]
[1733828986459,20.0,217.44,217.33,14.00245923]
[1733828986852,20.0,217.44,217.31,14.69252016]
[1733828987856,20.0,217.44,217.31,326.69252016]
[1733828988073,20.0,217.44,217.31,326.00245923]
[1733828988570,20.0,217.44,217.32,14.00245923]
[1733828988864,20.0,217.44,217.32,14.69252717]
[1733828989065,20.0,217.44,217.33,14.00245923]
[1733828991255,20.0,217.44,217.32,14.00245923]
[1733828991660,20.0,217.44,217.31,14.00245923]
[1733828993840,20.0,217.44,217.32,312.0]
[1733828994465,20.0,217.44,217.32,326.00245923]
[1733828996345,22.81817023,217.44,217.32,326.00245923]
[1733828997353,1.5826,217.43,217.32,326.00245923]
[1733828999171,1.5826,217.43,217.32,312.0]
[1733828999358,1.5826,217.43,217.3,14.00245923]
[1733828999754,0.12549,217.42,217.28,14.00245923]
[1733829000243,0.12549,217.42,217.29,14.00245923]
[1733829000767,0.12549,217.42,217.28,14.00245923]
[1733829000971,20.0,217.41,217.28,14.00245923]
[1733829001281,20.0,217.37,217.26,14.69263139]
[1733829001485,20.0,217.37,217.26,14.00245923]
[1733829001649,1.5826,217.36,217.25,14.00245923]
[1733829002260,1.5826,217.36,217.26,14.00245923]
[1733829003668,1.5826,217.36,217.25,312.0]
[1733829003669,1.5826,217.36,217.24,14.00245923]
[1733829004249,20.0,217.32,217.22,14.00245923]
[1733829004455,20.0,217.32,217.23,14.00245923]
[1733829004772,20.0,217.32,217.25,14.00245923]
[1733829005969,20.0,217.32,217.22,14.00245923]
[1733829006473,1.5826,217.3,217.18,14.00245923]
[1733829006778,1.5826,217.3,217.18,326.00245923]
[1733829007272,0.12549,217.29,217.17,14.00245923]
[1733829007472,6.2449,217.28,217.16,14.00245923]
[1733829007779,20.0,217.25,217.13,14.00245923]
[1733829008255,20.0,217.25,217.18,14.00245923]
[1733829008857,20.0,217.25,217.17,14.00245923]
[1733829009061,20.0,217.25,217.16,14.00245923]
[1733829009259,20.0,217.25,217.14,14.00245923]
[1733829009573,1.5826,217.24,217.14,14.00245923]
[1733829010757,0.12549,217.23,217.07,1.5496]
[1733829011078,0.12549,217.23,217.1,14.00245923]
[1733829011587,0.12549,217.23,217.11,14.00245923]
[1733829012774,6.4995,217.22,217.09,14.00245923]
[1733829012976,20.0,217.19,217.07,14.00245923]
[1733829014158,20.0,217.19,217.06,0.69075236]
[1733829014159,20.0,217.19,217.08,14.00245923]
[1733829015462,20.0,217.19,217.07,14.00245923]
[1733829015862,1.6132,217.18,217.06,14.00245923]
[1733829016193,1.6132,217.18,217.05,14.00245923]
[1733829016364,1.6132,217.18,217.03,0.69085392]
[1733829016365,0.12549,217.17,217.03,14.69331315]
[1733829016561,20.0,217.13,217.03,14.69331315]
[1733829016864,1.6132,217.11,217.01,14.00245923]
[1733829017067,1.6132,217.11,216.93,11.5241]
[1733829017068,1.6132,217.11,216.99,14.00245923]
[1733829017381,0.12549,217.1,216.97,14.00245923]
[1733829017767,0.12549,217.08,216.96,14.00245923]
[1733829018091,20.0,217.06,216.96,14.00245923]
[1733829018378,0.12549,217.05,216.93,14.00245923]
[1733829018595,1.6132,217.04,216.93,14.00245923]
[1733829021995,1.6132,217.04,216.92,14.00245923]
[1733829022492,20.0,216.99,216.9,14.00245923]
[1733829022789,20.0,216.99,216.91,14.69388916]
[1733829022993,6.205,217.02,216.95,14.00245923]
[1733829023220,6.205,217.02,216.97,14.00245923]
[1733829023507,1.6132,217.04,217.0,14.00245923]
[1733829023997,6.205,217.07,217.02,14.00245923]
[1733829024489,1.6132,217.1,217.04,14.00245923]
[1733829024692,1.6132,217.1,217.03,14.00245923]
[1733829024892,1.6132,217.1,217.02,14.00245923]
[1733829026482,1.6132,217.1,217.01,14.00245923]
[1733829026878,1.6132,217.1,217.02,14.00245923]
[1733829027186,20.0,217.09,216.99,326.00245923]
[1733829027384,20.0,217.09,216.89,11.526]
[1733829027385,20.0,217.09,216.97,14.00245923]
[1733829027805,0.25098,217.08,216.94,14.00245923]
[1733829027980,0.12549,217.06,216.93,14.00245923]
[1733829028387,0.12549,217.08,216.92,14.00245923]
[1733829028388,0.12549,217.04,216.92,14.00245923]
[1733829028680,0.12549,217.04,216.91,14.00245923]
[1733829030183,0.12549,217.04,216.92,14.00245923]
[1733829031391,27.6342,217.05,216.92,14.00245923]
[1733829031392,7.6342,217.05,216.97,14.00245923]
[1733829031586,7.6342,217.05,216.98,14.00245923]
[1733829031786,7.6342,217.05,217.0,0.12549]
[1733829031983,1.5417,217.05,217.0,0.12549]
[1733829032381,7.6342,217.1,217.01,14.00245923]
[1733829033604,7.6342,217.1,217.0,14.00245923]
[1733829033802,7.6342,217.1,217.01,312.0]
[1733829034602,7.6342,217.1,217.0,0.12549]
[1733829034908,7.6342,217.1,217.02,0.12549]
[1733829035083,7.6342,217.1,217.04,0.12549]
[1733829035604,1.5417,217.1,217.04,0.12549]
[1733829037700,1.5417,217.1,217.04,312.0]
[1733829038024,20.0,217.12,217.05,14.69340624]
[1733829038189,7.6342,217.15,217.05,14.69340624]
[1733829038806,7.6342,217.15,217.08,14.00245923]
[1733829038993,7.6342,217.15,217.09,14.00245923]
[1733829038994,1.5417,217.15,217.09,14.00245923]
[1733829039190,1.5417,217.15,217.07,14.00245923]
[1733829039517,1.5417,217.15,217.06,14.00245923]
[1733829039883,1.5417,217.15,217.07,14.00245923]
[1733829040095,1.5417,217.15,217.08,14.00245923]
[1733829040498,1.5417,217.15,217.07,14.00245923]
[1733829040703,1.5417,217.15,217.08,14.00245923]
[1733829041093,6.0925,217.2,217.12,14.00245923]
[1733829041292,6.0925,217.2,217.09,0.69079791]
[1733829041293,6.0925,217.2,217.13,14.00245923]
[1733829041706,6.0925,217.2,217.12,14.00245923]
[1733829041906,6.0925,217.2,217.11,14.69311726]
[1733829042598,20.0,217.17,217.08,14.00245923]
[1733829043613,20.0,217.17,217.06,14.00245923]
[1733829043800,20.0,217.17,217.07,14.00245923]
[1733829044002,20.0,217.17,217.09,14.00245923]
[1733829044203,20.0,217.17,217.08,0.69084053]
[1733829044204,6.0925,217.2,217.13,14.00245923]
[1733829044713,6.0925,217.2,217.12,14.00245923]
[1733829045028,6.0925,217.2,217.12,14.69315069]
[1733829045220,6.0925,217.2,217.13,14.00245923]
[1733829046101,1.5417,217.21,217.16,14.00245923]
[1733829046495,6.4259,217.25,217.17,0.69054982]
[1733829046701,6.4259,217.25,217.21,14.00245923]
[1733829046999,6.4259,217.3,217.21,14.00245923]